Cogmind - Beta 13 X2 @@@ ROGUE MODE // 2024.01.11 @ 20:04:26 Player: Terminus Result: Destroyed by P1-3CE with P1-3CE's Gatling Flakker Performance ------------- Evolutions (1) 500 Regions Visited (6) 1200 Robots Destroyed (107) 535 Value Destroyed (2013) 2013 Prototype IDs (38) 760 Alien Tech Used (0) 0 Bonus (367) 367 TOTAL SCORE: 5375 Bonus ------- Follower Combat Kills 67 Aligned with FarCom 300 Cogmind --------- Core Integrity 0/400 Matter 98/300 Energy 260/280 System Corruption 0% Temperature Cool (63) Movement Treading (240) Ox1 Location -8/Mines Parts ------- > --- POWER (1) -------- Heavy Ion Engine > --- PROPULSION (2) --- Light Treads Medium Treads > --- UTILITY (3) ------ Disposable Heat Sink High-capacity Storage Unit Hardened Light Armor Plating > --- WEAPON (3) ------- Improved Medium Laser 8R-AWN's Boregun Advanced Assault Cannon > --- INVENTORY (20) --- Reinforced Fission Core Light Treads Improved Treads Experimental Heat Sink Large Matter Pod (124) Experimental Targeting Computer Improved Armor Integrity Analyzer Advanced Weapon Cycler Light Armor Plating Light Armor Plating Hacking Suite Hacking Suite Thief Drone Bay (1/3) Improved Medium Laser Improved EM Pulse Cannon Improved Assault Rifle Improved Light Cannon Rocket Launcher Peak State ------------ > --- POWER ------------ Heavy Ion Engine > --- PROPULSION ------- Light Treads Medium Treads > --- UTILITY ---------- Disposable Heat Sink High-capacity Storage Unit Thief Drone Bay > --- WEAPON ----------- Improved Medium Laser 8R-AWN's Boregun 8R-AWN's Boregun > --- INVENTORY -------- Reinforced Fission Core Light Treads Improved Treads Experimental Heat Sink Large Matter Pod Experimental Targeting Computer Improved Armor Integrity Analyzer Advanced Weapon Cycler Light Armor Plating Light Armor Plating Hardened Light Armor Plating Hacking Suite Hacking Suite Improved Medium Laser Improved EM Pulse Cannon Improved Assault Rifle Improved Light Cannon Advanced Assault Cannon Rocket Launcher [Rating: 47] Favorites ----------- Power Heavy Ion Engine Engine Heavy Ion Engine Propulsion Light Treads Treads Light Treads Utility High-capacity Storage Unit Device Disposable Heat Sink Storage High-capacity Storage Unit Protection Hardened Light Armor Plating Weapon Improved Medium Laser Energy Gun Improved Medium Laser Energy Cannon Beam Cannon Ballistic Gun Improved Assault Rifle Ballistic Cannon Light Cannon Launcher Rocket Launcher Build | -11 -10 -10 -9 -9 -9 -8 ------- Run | Yrd Mat Min Mat Min Exi Min Slots Evolved 2 | . . . 2 . . . Power . | . . . . . . . Propulsion . | . . . . . . . Utility 1 | . . . 1 . . . Weapon 1 | . . . 1 . . . Parts Attached 81 | 7 7 1 33 5 22 6 Power 5 | 1 . . 3 . 1 . Engine 5 | 1 . . 3 . 1 . Core . | . . . . . . . Reactor . | . . . . . . . Propulsion 13 | 2 . . 8 1 1 1 Treads 13 | 2 . . 8 1 1 1 Leg . | . . . . . . . Wheel . | . . . . . . . Hover . | . . . . . . . Flight . | . . . . . . . Utility 35 | 1 4 . 13 2 13 2 Device 16 | . 1 . 5 1 8 1 Storage 6 | 1 2 . 2 . 1 . Processor . | . . . . . . . Hackware . | . . . . . . . Protection 13 | . 1 . 6 1 4 1 Artifact . | . . . . . . . Weapon 28 | 3 3 1 9 2 7 3 Energy Gun 10 | 1 1 . 5 1 2 . Energy Cannon 1 | . . . 1 . . . Ballistic Gun 10 | 2 . . 2 1 3 2 Ballistic Cannon 5 | . 2 1 . . 1 1 Launcher 2 | . . . 1 . 1 . Special Weapon . | . . . . . . . Impact Weapon . | . . . . . . . Slashing Weapon . | . . . . . . . Piercing Weapon . | . . . . . . . Special Melee Weapon . | . . . . . . . Unidentified Prototypes 6 | . . . 2 1 3 . Parts Lost 9 | . . . 7 . . 2 Power 1 | . . . 1 . . . Propulsion 4 | . . . 3 . . 1 Utility 2 | . . . 2 . . . Weapon 2 | . . . 1 . . 1 Highest Loss Streak 2 | . . . 2 . . 2 To Critical Strikes . | . . . . . . . Average Slot Usage (%) 99 | . 96 100 99 100 100 99 Engine 11 | . 14 14 10 11 11 11 Treads 23 | . 28 28 21 22 22 22 Device 9 | . 2 . 12 11 10 19 Storage 11 | . 14 14 11 11 11 11 Protection 10 | . 8 14 9 10 11 2 Energy Gun 16 | . 5 . 22 22 16 11 Ballistic Gun 9 | . 5 . 7 11 14 19 Ballistic Cannon 5 | . 16 28 1 . 1 1 Naked Turns . | . . . . . . . Heaviest Build 72 | 12 24 24 63 63 72 68 Greatest Support 40 | 40 40 40 40 40 40 40 Greatest Overweight (x) 1 | . . . 1 1 1 1 Average Overweight (x) . | . . . . 1 1 1 Largest Inventory Capacity 20 | 8 10 10 20 20 20 20 Average Capacity 17 | 7 9 10 17 20 20 20 Most Carried 20 | 2 10 10 20 20 20 20 Average Carried 16 | 1 7 9 17 19 18 19 Final Capacity 20 | 8 10 10 20 20 20 20 Final Carried 20 | 2 10 10 20 20 20 18 Class Distribution -------------------- 75% | Tank 20% | Mutant Dominant Class ---------------- Mutant | -10/Materials Mutant | -10/Mines Tank | -9/Materials Tank | -9/Mines Tank | -9/Exiles Gunner | -8/Mines Resources | -11 -10 -10 -9 -9 -9 -8 ----------- Run | Yrd Mat Min Mat Min Exi Min Matter Collected 2460 | 242 214 254 568 110 1069 3 Remotely . | . . . . . . . Salvage Created 4051 | . 657 399 1946 410 603 36 Parts 226 | . 41 21 94 13 56 1 Haulers Intercepted 7 | . 2 . 5 . . . Recyclers Shooed 6 | . 1 1 3 1 . . Parts Field Recycled . | . . . . . . . Retrieved Matter . | . . . . . . . Parts Self-Destructed . | . . . . . . . Prevented . | . . . . . . . Kills | -11 -10 -10 -9 -9 -9 -8 ------- Run | Yrd Mat Min Mat Min Exi Min Combat Hostiles Destroyed 65 | . 11 9 29 8 5 3 Guns 40 | . 8 . 21 7 1 3 Cannons 16 | . 3 9 4 . . . AOE 9 | . . . 4 1 4 . Classes Destroyed 13 | . 5 2 2 2 2 . Worker 5 | . . 1 3 1 . . Builder 3 | . . . 3 . . . Tunneler 1 | . . . . 1 . . Hauler 7 | . 2 . 5 . . . Recycler 13 | . 1 3 6 3 . . Operator 3 | . 1 . 2 . . . Turret 1 | . . . . . 1 . Watcher 7 | . 2 . 5 . . . Swarmer 22 | . . 5 11 3 . 3 Grunt 25 | . 11 4 8 2 . . Sentry 10 | . . . 10 . . . Zionite 8 | . . . . . 8 . Assembled 7 | . . . . 3 4 . Best Kill Streak 7 | . 5 4 7 2 7 3 Combat Bots Only 7 | . 4 3 7 2 4 3 Max Kills in Single Turn 3 | . 1 2 3 1 1 1 Gunslinging . | . . . . . . . Exploded 3 | . . . 3 1 1 . Melee . | . . . . . . . Uniques/NPCs Destroyed 4 | . . . . . 4 . 8R-AWN (-9/Exiles) EX-BIN (-9/Exiles) EX-DEC (-9/Exiles) EX-HEX (-9/Exiles) Combat | -11 -10 -10 -9 -9 -9 -8 -------- Run | Yrd Mat Min Mat Min Exi Min Hostile Shots Fired 282 | . 30 32 108 19 17 76 Missed 59 | . 8 4 25 6 3 13 Damage Taken 3171 | . 280 326 978 128 283 1176 Core 496 | . 52 36 187 15 36 170 Absorbed by Shields . | . . . . . . . Regen/Repaired (Parts) 151 | . . . 151 . . . Core Remaining (%) 82 | 100 . 64 . . . . Volleys Fired 283 | . 45 24 99 20 84 11 Largest 3 | . 2 2 3 3 3 3 Hottest 168 | . 70 70 168 135 127 127 Shots Fired 666 | . 91 49 288 60 148 30 Gun 538 | . 72 . 243 60 137 26 Cannon 118 | . 19 49 42 . 4 4 Launcher 10 | . . . 3 . 7 . Special . | . . . . . . . Kinetic 350 | . 55 49 68 20 136 22 Thermal 306 | . 36 . 217 40 5 8 Explosive 10 | . . . 3 . 7 . Electromagnetic . | . . . . . . . Robot Hit Streak 15 | . 7 6 15 7 12 9 Robot Miss Streak 4 | . 4 4 4 4 3 2 Penetration Max 1 | . . . . . 1 1 Secondary Targets 1 | . . . 1 . . . Max Gunslinging Chain 1 | . . . 1 . . . Shots Hit Robots 378 | . 54 24 158 26 94 22 Core Hits 168 | . 30 14 66 15 39 4 Critical Kills 5 | . . . 1 . 4 . Critical Parts Destroyed 16 | . . . . . 12 4 Critical Strikes 42 | . 1 . 10 1 25 5 Burn 11 | . 1 . 8 1 . 1 Destroy 30 | . . . 1 . 25 4 Blast 1 | . . . 1 . . . Melee Attacks . | . . . . . . . Impact . | . . . . . . . Slashing . | . . . . . . . Piercing . | . . . . . . . Sneak Attacks . | . . . . . . . Combat Hostiles . | . . . . . . . Follow-up Attacks . | . . . . . . . Damage Inflicted 7360 | . 665 463 3217 536 2022 457 Guns 5521 | . 476 . 2603 447 1596 399 Cannons 1143 | . 188 460 383 . 54 58 Explosions 600 | . . . 170 58 372 . Melee . | . . . . . . . Ramming 96 | . 1 3 61 31 . . Kinetic 3476 | . 362 460 582 107 1618 347 Thermal 3246 | . 302 . 2404 398 32 110 Explosive 542 | . . . 170 . 372 . Electromagnetic . | . . . . . . . Impact . | . . . . . . . Slashing . | . . . . . . . Piercing . | . . . . . . . Highest Corruption 7 | . 7 7 . . . . Average Corruption 6 | . 5 7 . . . . Corruption Purged . | . . . . . . . Corruption Blocked . | . . . . . . . Effects 42 | . 9 33 . . . . Message Errors 9 | . . 9 . . . . Matter Fused 8 | . 4 4 . . . . Heat Flow Errors 8 | . . 8 . . . . Energy Discharges 7 | . 1 6 . . . . Parts Fused 1 | . . 1 . . . . Data Loss (minor) 5 | . 2 3 . . . . Data Loss (major) 2 | . 1 1 . . . . Misfires 2 | . 1 1 . . . . Overload Shots . | . . . . . . . Overflow Damage 27 | . 10 . 17 . . . Projectiles 10 | . 10 . . . . . Explosions 17 | . . . 17 . . . Melee . | . . . . . . . Knockbacks 12 | . 2 5 5 . . . Impact . | . . . . . . . Kinetic 9 | . 2 4 3 . . . Secondary 3 | . . 1 2 . . . Self-Inflicted Damage 49 | . . . . . 49 . Shots 1 | . . . . . 1 . Rammed 17 | . 1 2 10 4 . . Targets Rammed 22 | . 1 3 13 5 . . Kicked . | . . . . . . . Crushed 5 | . . 1 3 1 . . Highest Temperature 292 | . 145 249 292 196 208 183 Average Temperature 64 | . 24 83 71 81 41 93 Received Heat Transfer 576 | . 156 162 258 . . . Effects 5 | . . . 5 . . . Energy Bleed 2 | . . . 2 . . . Interference 3 | . . . 3 . . . Siege Activations . | . . . . . . . Robots Corrupted . | . . . . . . . Combat Hostiles . | . . . . . . . Parts Fried . | . . . . . . . Impact Corruptions . | . . . . . . . Robots Melted . | . . . . . . . Combat Hostiles . | . . . . . . . Parts Melted 9 | . . . 9 . . . Heat Transferred 7739 | . 962 . 5624 914 74 165 Parts Sabotaged . | . . . . . . . Parts Stolen . | . . . . . . . Parts Stripped . | . . . . . . . Power Chain Reactions . | . . . . . . . Missiles Intercepted . | . . . . . . . Alert | -11 -10 -10 -9 -9 -9 -8 ------- Run | Yrd Mat Min Mat Min Exi Min Peak Influence 334 | . 286 254 334 229 . 71 Initial 119 | . . 54 24 119 . . Average 90 | . 120 122 130 30 . 59 Maximum Alert Level 1 | . 1 1 1 1 . . Low Security (%) 85 | 100 85 86 75 96 . 100 Level 1 14 | . 14 13 24 3 . . Level 2 . | . . . . . . . Level 3 . | . . . . . . . Level 4 . | . . . . . . . Level 5 . | . . . . . . . High Security . | . . . . . . . Max Security . | . . . . . . . Squads Dispatched 10 | . 7 . 2 1 . . Investigation 7 | . 4 . 2 1 . . Extermination . | . . . . . . . Reinforcement 3 | . 3 . . . . . Assault . | . . . . . . . Garrison . | . . . . . . . Intercept . | . . . . . . . Searches Triggered . | . . . . . . . Construction Impeded . | . . . . . . . Haulers Reinforced . | . . . . . . . Active Scanning Responses . | . . . . . . . Cargo Convoy Interrupts . | . . . . . . . Stealth | -11 -10 -10 -9 -9 -9 -8 --------- Run | Yrd Mat Min Mat Min Exi Min Distress Signals 3 | . 1 . 2 . . . Communications Jammed . | . . . . . . . Distress Signals . | . . . . . . . Times Spotted 110 | . 21 12 38 9 24 6 Peak Tracking Total 11 | . 5 3 5 4 11 4 Tactical Retreats 8 | . . 1 2 1 4 . Traps | -11 -10 -10 -9 -9 -9 -8 ------- Run | Yrd Mat Min Mat Min Exi Min Traps Triggered 7 | . 5 . 2 . . . Indirectly . | . . . . . . . Trap Hack Attempts . | . . . . . . . Triggered . | . . . . . . . Disarmed . | . . . . . . . Reprogrammed . | . . . . . . . Reused . | . . . . . . . Traps Extracted . | . . . . . . . Installed . | . . . . . . . Triggered . | . . . . . . . Machines | -11 -10 -10 -9 -9 -9 -8 ---------- Run | Yrd Mat Min Mat Min Exi Min Machines Disabled 17 | . 2 1 . 1 13 . Max in Single Turn 1 | . 1 1 . 1 1 . Machines Repaired . | . . . . . . . Machines Dismantled . | . . . . . . . Machines Sabotaged . | . . . . . . . Overloaded Fab Kills . | . . . . . . . Hacking | -11 -10 -10 -9 -9 -9 -8 --------- Run | Yrd Mat Min Mat Min Exi Min Machines Accessed 27 | . 7 . 16 2 2 . Terminals 16 | . 5 . 11 . . . Fabricators . | . . . . . . . Repair Stations 2 | . . . 2 . . . Recycling Units 4 | . 2 . 2 . . . Scanalyzers 1 | . . . 1 . . . Garrison Access . | . . . . . . . Total Hacks 74 | . 16 . 51 2 5 . Successful 41 | . 8 . 26 2 5 . Failed 32 | . 8 . 24 . . . Catastrophic 6 | . 2 . 4 . . . Database Lockouts 1 | . . . 1 . . . Manual 46 | . 16 . 29 . 1 . Terminals 57 | . 14 . 43 . . . Fabricators . | . . . . . . . Repair Stations 4 | . . . 4 . . . Recycling Units 4 | . 2 . 2 . . . Scanalyzers 2 | . . . 2 . . . Garrison Access . | . . . . . . . Terminal Hacks 23 | . 4 . 12 2 5 . Record 4 | . . . . . 4 . Part Schematic 1 | . 1 . . . . . Robot Analysis 3 | . 2 . 1 . . . Prototype ID Bank 4 | . . . 4 . . . Open Door 2 | . . . . 2 . . Branch Access Points 1 | . . . 1 . . . Terminal Index 1 | . . . 1 . . . Alert Level 1 | . . . 1 . . . Unreport Threat 2 | . . . 2 . . . Hauler Manifests 1 | . . . 1 . . . Zone Layout 2 | . 1 . 1 . . . Derelict Proto ID Bank 1 | . . . . . 1 . Fabricator Hacks . | . . . . . . . Repair Station Hacks 4 | . . . 4 . . . Scan Component 2 | . . . 2 . . . Repair 2 | . . . 2 . . . Recycling Unit Hacks . | . . . . . . . Scanalyzer 2 | . . . 2 . . . Insert Component 1 | . . . 1 . . . Analyze 1 | . . . 1 . . . Garrison Access Hacks . | . . . . . . . Unauthorized Hacks 12 | . 4 . 8 . . . Terminals 8 | . 2 . 6 . . . Botnet 7 | . 2 . 5 . . . Operators 1 | . . . 1 . . . Fabricators . | . . . . . . . Repair Stations . | . . . . . . . Recycling Units 4 | . 2 . 2 . . . Tunnel 4 | . 2 . 2 . . . Scanalyzers . | . . . . . . . Garrison Access . | . . . . . . . Data Cores Recovered 2 | . . . 2 . . . Used 2 | . . . 2 . . . Hacking Detections 18 | . 5 . 13 . . . Full Trace Events 2 | . 2 . . . . . Feedback Events . | . . . . . . . Feedback Blocked . | . . . . . . . Robot Schematics Acquired . | . . . . . . . Robots Built . | . . . . . . . Authchips . | . . . . . . . Time . | . . . . . . . Total Robot Build Rating . | . . . . . . . Part Schematics Acquired 2 | . 1 . 1 . . . Parts Built . | . . . . . . . Authchips . | . . . . . . . Time . | . . . . . . . Total Part Build Rating . | . . . . . . . Parts Repaired 2 | . . . 2 . . . Time 83 | . . . 83 . . . Parts Recycled . | . . . . . . . Recycled Matter . | . . . . . . . Retrieved Matter . | . . . . . . . Retrieved Components . | . . . . . . . Parts Scanalyzed 1 | . . . 1 . . . Part Schematics Acquired 1 | . . . 1 . . . Parts Damaged . | . . . . . . . Bothacking | -11 -10 -10 -9 -9 -9 -8 ------------ Run | Yrd Mat Min Mat Min Exi Min Used RIF Installer . | . . . . . . . Robots Hacked . | . . . . . . . Non-combat . | . . . . . . . Combat . | . . . . . . . Robot Hacks Applied . | . . . . . . . Relay Couplers Released . | . . . . . . . Fabnet Peak Effective % . | . . . . . . . Robots Rewired . | . . . . . . . Allies Hacked . | . . . . . . . Hacks Repelled . | . . . . . . . Allies | -11 -10 -10 -9 -9 -9 -8 -------- Run | Yrd Mat Min Mat Min Exi Min Total Allies 1 | . . 1 . . . . Largest Group 1 | . . 1 . . . . Highest-Rated Group 31 | . . 31 . . . . Highest-Rated Ally 31 | . . 31 . . . . Total Orders 7 | . . . . . 3 4 RETURN 7 | . . . . . 3 4 Ally Attacks 54 | . . 9 . . 34 11 Total Damage 359 | . . 145 . . 129 85 Kills 4 | . . 3 . . 1 . Allies Corrupted . | . . . . . . . Allies Melted . | . . . . . . . Intel | -11 -10 -10 -9 -9 -9 -8 ------- Run | Yrd Mat Min Mat Min Exi Min Robot Analysis Total 3 | . 2 . 1 . . . Derelict Logs Recovered 2 | . . 1 . 1 . . Drone Launches 18 | . . . . . 13 5 Drone Recoveries 16 | . . . . . 13 3 Exploration | -11 -10 -10 -9 -9 -9 -8 ------------- Run | Yrd Mat Min Mat Min Exi Min Turns Passed 10809 | 76 944 1123 2949 2816 2767 134 Spaces Moved 4126 | 53 453 630 1104 897 975 14 Core 20 | 20 . . . . . . Treads 4106 | 33 453 630 1104 897 975 14 Legs . | . . . . . . . Wheels . | . . . . . . . Hover . | . . . . . . . Flight . | . . . . . . . Fastest Speed 50 | 50 160 160 160 240 240 240 Average Speed 210 | 118 160 160 213 240 240 240 Slowest Speed 240 | 160 160 160 240 240 240 240 Overloaded Moves . | . . . . . . . Propulsion Burnouts . | . . . . . . . Robots Hopped . | . . . . . . . Cave-ins Triggered . | . . . . . . . Exploration Rate (%) 69 | 4 96 99 92 100 89 6 Regions Visited 6 Branch Regions 4 Pre-discovered Areas 6 | . 2 . 2 1 1 . Known Exits Taken 1 | . . . 1 . . . Unknown Exits Taken 5 | 1 1 1 . 1 1 . Scrap Searched 4 | . . 2 . 2 . . Spaces Dug 5 | . . . . . 5 . Terrain Destroyed 116 | . . . 27 14 67 8 Melee . | . . . . . . . Projectile 34 | . . . . . 26 8 AOE 81 | . . . 27 14 40 . Terrain Rammed . | . . . . . . . Walls Destroyed . | . . . . . . . Machines Disabled . | . . . . . . . Actions | -11 -10 -10 -9 -9 -9 -8 --------- Run | Yrd Mat Min Mat Min Exi Min Total 5687 | 63 591 698 1471 1511 1264 89 Wait 1049 | 2 64 36 170 575 144 58 Move 4120 | 52 452 629 1103 896 974 14 Hop . | . . . . . . . Pick Up 64 | 2 14 2 27 4 15 . Fast Attach 26 | 6 2 . 14 2 2 . Attach 13 | . . . 8 1 2 2 Detach 1 | . . . . . 1 . Swap 43 | 1 5 1 12 2 18 4 Drop 66 | . 8 3 25 6 24 . Fire 283 | . 45 24 99 20 84 11 Melee . | . . . . . . . Ram . | . . . . . . . Kick . | . . . . . . . Crush 22 | . 1 3 13 5 . . Escape Stasis . | . . . . . . . Rewire . | . . . . . . . Trap . | . . . . . . . Miscellaneous . | . . . . . . . Route ------- -11/Scrapyard -10/Materials (discovered 5 exits: *Mat x3 / [*Min x2]) -10/Mines (discovered 2 exits: *Mat x2) -9/Materials (discovered 4 exits: [*Mat x3] / *Min) -9/Mines (discovered 4 exits: [*Mat x2] / *Exi / [*Zio]) -9/Exiles -8/Mines History --------- Turn | Location | Event 7 | -11/Scrapyard | Discovered new exit (range 15) 77 | -11/Scrapyard | Entered Materials 240 | -10/Materials | Discovered new exit (range 13) 316 | -10/Materials | Build established: Mutant 484 | -10/Materials | Discovered new exit (range 15) 585 | -10/Materials | Discovered new exit (range 8) 874 | -10/Materials | Discovered new exit (range 7) 928 | -10/Materials | Discovered new exit (range 16) 1021 | -10/Materials | Entered Mines 1090 | -10/Mines | Found a hidden stash of uninstalled traps 1251 | -10/Mines | Discovered new exit (range 10) 1287 | -10/Mines | Learned Materials garrison access intel 1521 | -10/Mines | Discovered new exit (range 13) 1527 | -10/Mines | Received a Mining Laser from a helpful Derelict 1622 | -10/Mines | Received a Rocket Launcher from a helpful Derelict 2144 | -10/Mines | Entered Materials 2144 | -9/Materials | Evolved 2 slots: Utility x1, Weapon x1 2449 | -9/Materials | Build established: Tank 2759 | -9/Materials | Destroyed 7 combat bots 3192 | -9/Materials | Central database locked down 3445 | -9/Materials | Discovered new exit (range 16) 3914 | -9/Materials | Discovered new exit (range 9) 4048 | -9/Materials | Discovered new exit (range 16) 4189 | -9/Materials | Repaired Imp. Medium Laser 4373 | -9/Materials | Identified exit to Mines 4705 | -9/Materials | Repaired Hrd. Light Armor Plating 4946 | -9/Materials | Discovered new exit (range 14) 5093 | -9/Materials | Entered Mines 5384 | -9/Mines | Core integrity fell below 50% 5433 | -9/Mines | Assembled infested the area 6073 | -9/Mines | Discovered new exit (range 6) 6122 | -9/Mines | Learned location of Storage (-8) 6227 | -9/Mines | Discovered new exit (range 8) 6357 | -9/Mines | Learned Materials stockpile data 6365 | -9/Mines | A Derelict revealed a hidden shortcut to a safe place 6911 | -9/Mines | Met a Derelict shopkeep closing up shop 7012 | -9/Mines | Deemed a non-threat by the Exiles lab entrance 7012 | -9/Mines | Discovered new exit (range 5) 7148 | -9/Mines | Found the Drone Emporium 7159 | -9/Mines | Found Prototype Device 7159 | -9/Mines | Identified Thief Drone Bay 7909 | -9/Mines | Entered Exiles 7969 | -9/Exiles | Met 8R-AWN 8008 | -9/Exiles | Met EX-HEX 8189 | -9/Exiles | Met EX-DEC 8232 | -9/Exiles | Learned location of Zion (-7) 8339 | -9/Exiles | Discovered new exit (range 10) 8497 | -9/Exiles | Met EX-BIN 8530 | -9/Exiles | Aligned with FarCom system 8533 | -9/Exiles | Given EX-Vault access code 8588 | -9/Exiles | Opened EX-Vault 8641 | -9/Exiles | Warned to stay clear of 0b10 Research branches 9158 | -9/Exiles | Attacked by the Exiles 9336 | -9/Exiles | Found 8R-AWN's Boregun 9442 | -9/Exiles | Found Prototype Device 9442 | -9/Exiles | Identified AS-neutralizer No. 17b 9458 | -9/Exiles | Found 8R-AWN's Boregun 9753 | -9/Exiles | Destroyed 8R-AWN 9762 | -9/Exiles | Found Prototype Processor 10157 | -9/Exiles | Destroyed EX-BIN 10217 | -9/Exiles | Destroyed EX-DEC 10261 | -9/Exiles | Allies destroyed EX-HEX 10287 | -9/Exiles | Identified Exp. Targeting Computer 10287 | -9/Exiles | Found Prototype Device 10296 | -9/Exiles | Identified System Purifier 10321 | -9/Exiles | Found Prototype Energy Gun 10323 | -9/Exiles | Identified AWS/EX-DEC 10676 | -9/Exiles | Entered Mines 10769 | -8/Mines | P1-3CE came to Exiles' defense 10807 | -8/Mines | Core integrity fell below 20% 10810 | -8/Mines | Destroyed by P1-3CE with P1-3CE's Gatling Flakker Last Messages --------------- 10791_ Thief Drone destroyed. 10797_ Thief Drone sneak attacks. 10798_ Thief Drone knocked back. 10798_ HV Slug penetrates Earth. 10798_ HV Slug penetrates Wall. 10798_ HV Slug penetrates P1-3CE. 10798_ HV Slug penetrates Wall. 10799_ Thief Drone retrieved by Thief Drone Bay. 10801_ HV Slug penetrates P1-3CE. 10801_ HV Slug penetrates Wall. 10801_ HV Slug penetrates P1-3CE. 10801_ HV Slug penetrates Wall. 10804_ Lgt. Treads destroyed. 10807_ HV Slug penetrates P1-3CE. 10807_ HV Slug penetrates G-50 Soldier. 10807_ HV Slug penetrates P1-3CE. 10807_ HV Slug penetrates G-50 Soldier. 10807_ G-50 Soldier suffers critical hit (Destroy). 10807_ Destroyed Adv. Heat Sink. 10808_ 8R-AWN's Boregun destroyed. Map ----- +----------------------------------------------------+ | ?????????????????????????????????????????? | | ?????????????????????????????????????????? | | ?????????????????????????????????????????? | | ?????????????????????????????????????????? | | ?????????????????????????????????????????? | | ?????????????????????????????????????????? | | ?????????????????????????????????????????? | | ?????????????????????????????????????????? | | ????????????????#%???????????????????????? | | ????????????????#=???????????????????????? | | ????????????????# ???????????????????????? | | ????????????????# #####??????????????????? | | ????????????????# ???????????????????? | | ???????????????? ???????????????????? | | ???????????????? ???????????????????? | | ????????????????# ???????????????????? | | ????????????????# ????????????????????? | | ???????????????##% ????????????????????? | | ???????????????# = ???##???????????????? | | ???????????????# ??# ???????????????? | | ????????????????# ### ?####???????????? | | ???????????????##; # ###%%###?????????? | | ???????????????# ; #;;## % ;#?????????? | | ???????????????# ; gg [ ###????????? | | ???????????????### =g!M ; #????????? | | ?????????????????# #"#;;@ * ##?????????? | | ?????????????????# #?###; ##??????????? | | ????????????????# ???######???????????? | | ????????????????# ????????????????????? | | ????????????????# ????????????????????? | | ???????????????? ????????????????????? | | ????????????????# ????????????????????? | | ????????????????#####????????????????????? | | ?????????????????????????????????????????? | | ?????????????????????????????????????????? | | ?????????????????????????????????????????? | | | | | | | | | | | | | | | | | | | | | | | | | | | | | +----------------------------------------------------+ Best States ------------- Heat Dissipation 52 Coolant Potential 50 Energy Generation 14 Energy Capacity 280 Matter Stores 300 Matter Capacity 300 Sight Range 16 Terrain Scan Density 10 Armor Coverage 300 Evasion (%) 40 Recoil Reduction 2 Item Schematics ----------------- Huge Storage Unit | -10/Materials | Hacked Hacking Suite | -9/Materials | Scanalyzed Robot Schematics ------------------ None Fabricated ------------ Nothing Alien Tech Used ----------------- None Achievements -------------- None Challenges ------------ None Game ------ Seed LinearZhirovRailgun Manual? 0 Play Time 00:48:18 Cumulative 1865.0 hours Start 2024.01.11 @ 16:28:59 End 2024.01.11 @ 20:04:26 Sessions 1 Manual Loads 0 Difficulty Rogue Special Mode None Game No. 654 Rogue 654 Adventurer 0 Explorer 0 Win Type - Total 145 Types 29/13/64/7/1/2/27/1/1 Lore% 96 Gallery% 96 Achievement% 88 Wizard Run 0 Options --------- ASCII 0 Keyboard 0 Movement Numpad Keybinds 0 Fullscreen 2 Font 18/SmallcapsGlow Map View 76x50 Zoom Use 0% Tactical HUD 1 Map Filters NONE Filters NONE Steam 1 RUN: 2265c2d0-a558-4fd5-a39a-a70a8a8c2fba